{"text_format":"1","workbook":"xlsx","n_sheets":2,"sheets":["grid","Лист2"],"not_rendered":{"charts":0,"images":0,"macros":1,"external_links":0,"defined_names":0,"comments":0,"pivot_tables":0},"unopened":[],"bounds":{"document_bytes":16777216,"sheet_cells":100000,"rows_first":2000,"rows_last":500,"rows_between":2000,"halvings":0,"cell_chars":16384,"cell_head_chars":4096},"cells_cut":0,"cells_raw":0,"read":"whole","date_system":"1900"}

{"sheet":"grid","index":0,"n_rows":30,"n_cols":30,"rows_kept":30,"cut":false,"hidden":false,"merged":[]}
[null,null,null,null,null,null,null,null,null,200]
[null,null,null,null,null,null,null,null,"по Х"]
[null,"Well","Region","X","Y",null,null,null,45000,{"$f":"I3+$J$1","v":45200},{"$f":"J3+$J$1","v":45400},45600,45800,46000,46200,46400,46600,46800,47000,47200,47400,47600,47800,48000,48200,48400,48600,48800,49000,49200]
[null,"KL_0001",11,45153,76005,null,"по Y",76000]
[null,"KL_0002",11,46553,76761,null,null,{"$f":"H4+$J$1","v":76200}]
[null,"KL_0004",11,58438,76500,null,null,{"$f":"H5+$J$1","v":76400}]
[null,"KL_0005",11,59345,77539,null,null,76600]
[null,"KL_0006",11,58197,81066,null,null,76800]
[null,"KL_0007",11,59946,79195,null,null,77000]
[null,"KL_0008",12,58932,76455,null,null,77200]
[null,"KL_0009",12,55915,80852,null,null,77400]
[null,"KL_0012",12,52629,82219,null,null,77600]
[null,"KL_0013",12,62626,76141,null,null,77800]
[null,"KL_0014",12,50200,82587,null,null,78000]
[null,"KL_0015",13,54653,80566,null,null,78200]
[null,"KL_0016",13,45216,83286,null,null,78400]
[null,"KL_0018",13,49616,84034,null,null,78600]
[null,"KL_0020",13,49086,80863,null,null,78800]
[null,"KL_0021",13,54574,81902,null,null,79000]
[null,"KL_0022",13,52156,80893,null,null,79200]
[null,null,null,null,null,null,null,79400]
[null,null,null,null,null,null,null,79600]
[null,null,null,null,null,null,null,79800]
[null,null,null,null,null,null,null,80000]
[null,null,null,null,null,null,null,80200]
[null,null,null,null,null,null,null,80400]
[null,null,null,null,null,null,null,80600]
[]
[]
["1 ячейка с координатами"]

{"sheet":"Лист2","index":1,"n_rows":2,"n_cols":1,"rows_kept":2,"cut":false,"hidden":false,"merged":[]}
[]
["Здравствуйте. Помогите сделать формулу или через VBA. Имеется своеобразный грид сеткой 200*200, определяемыми координатами. Примерную ячейку с координатами привела в файле, границы ячейки определяются правым верхним углом. Внутри каждой ячейки необходимо вписать названия из столбца Well согласно условиям по координатам Х и У. Н-р, показала для примера по KL_0001 и KL_0002. Хотела прописать такую формулу, чтобы по координатам выбирались значения (названия) в каждую ячейку из массива столбцы В:Е (он огромен), тут только кусочек. Поэтому в каждую ячейку грида может входить много названий. Можно через запятую (др. чем-нибудь) разграничить названия. Там дальше по названию планирую подтягивать другие данные в этих ячейках."]